[Event "GER-ch Youth U10 2020"]
[Site "Willingen"]
[Date "2020.10.27"]
[Round "1.23"]
[White "Hellenbroich, Hanno"]
[Black "Noennig, Jakob"]
[Result "1/2-1/2"]
[ECO "C54"]
[WhiteElo "1291"]
[BlackElo "1442"]
[Annotator "NA RC"]
[PlyCount "78"]
[EventDate "2020.10.27"]
[EventType "swiss"]
[EventRounds "7"]
[EventCountry "GER"]
[SourceTitle "playchess.com"]
[Source "ChessBase"]
[SourceQuality "1"]
[TimeControl "40/4500+30:900+30"]

1. e4 {[%emt 0:00:00]} e5 {[%emt 0:00:00]} 2. Nf3 {[%emt 0:00:00]} Nc6 {[%emt 0:00:00]} 3. Bc4 {[%emt 0:00:03]} Bc5 {[%emt 0:00:00]} 4. c3 {[%emt 0:00:14]} Nf6 {[%emt 0:00:00]} 5. d3 {[%emt 0:00:17]} d6 {[%emt 0:00:07]} 6. O-O {[%emt 0:00:16]} Bg4 {[%emt 0:01:17]} 7. Nbd2 {[%emt 0:01:11]} O-O {[%emt 0:00:40]} 8. Re1 {[%emt 0:00:17]} h6 {[%emt 0:01:07]} 9. Nf1 {[%emt 0:00:16]} Ne7 {[%emt 0:03:52]} 10. Ng3 {[%emt 0:02:07]} Qd7 {[%emt 0:05:25]} 11. d4 {[%emt 0:01:05]} exd4 {[%emt 0:02:17]} 12. cxd4 {[%emt 0:00:19]} Bxf3 {[%emt 0:00:19]} 13. gxf3 {[%emt 0:01:23]} Bb4 {[%emt 0:00:49]} 14. Re2 {[%emt 0:00:16]} b5 {[%emt 0:01:54]} 15. Bd3 {[%emt 0:00:43]} Rad8 {[%emt 0:02:08]} 16. Be3 {[%emt 0:02:29]} c6 {[%emt 0:04:33]} 17. Qc1 {[%emt 0:02:13]} Ne8 {[%emt 0:03:09]} 18. Nf5 {[%emt 0:05:25]} Nxf5 {[%emt 0:01:25]} 19. exf5 {[%emt 0:00:34]} f6 {[%emt 0:01:23]} 20. a3 {[%emt 0:01:05]} Ba5 {[%emt 0:00:42]} 21. b4 {[%emt 0:00:17]} Bc7 {[%emt 0:01:17]} 22. Re1 {[%emt 0:00:42]} Qf7 {[%emt 0:02:32]} 23. Bf4 {[%emt 0:01:46]} d5 {[%emt 0:04:09]} 24. Kh1 {[%emt 0:00:29]} Qh5 {[%emt 0:04:09]} 25. Be2 {[%emt 0:01:30]} Bxf4 {[%emt 0:01:36]} 26. Qxf4 {[%emt 0:00:08]} Rc8 {[%emt 0:01:22]} 27. Rg1 {[%emt 0:00:05]} Rf7 {[%emt 0:02:08]} 28. Rae1 {[%emt 0:01:46]} Re7 {[%emt 0:01:45]} 29. Bd3 {[%emt 0:06:00]} Rxe1 {[%emt 0:01:47]} 30. Rxe1 {[%emt 0:00:26]} Qf7 {[%emt 0:02:38]} 31. Rg1 {[%emt 0:00:42]} Kh8 {[%emt 0:02:36]} 32. Qe3 {[%emt 0:02:23]} Nc7 {[%emt 0:01:42]} 33. Rc1 {[%emt 0:02:00]} Qd7 {[%emt 0:01:33]} 34. Bb1 {[%emt 0:01:03]} a6 {[%emt 0:02:19]} 35. Qc3 {[%emt 0:00:24]} Ne8 {[%emt 0:01:35]} 36. Qe3 {[%emt 0:00:12]} Nc7 {[%emt 0:01:42]} 37. Qc3 {[%emt 0:00:14]} Ne8 {[%emt 0:00:38]} 38. Qe3 {[%emt 0:00:07]} Nc7 {[%emt 0:00:21]} 39. Qc3 Qd8 1/2-1/2

[Event "GER-ch Youth U10 2020"]
[Site "Willingen"]
[Date "2020.10.27"]
[Round "1.24"]
[White "Pimenov, Danil"]
[Black "Allen, Phillipp"]
[Result "1-0"]
[ECO "B28"]
[WhiteElo "1235"]
[BlackElo "1250"]
[Annotator "NA RC"]
[PlyCount "113"]
[EventDate "2020.10.27"]
[EventType "swiss"]
[EventRounds "7"]
[EventCountry "GER"]
[SourceTitle "playchess.com"]
[Source "ChessBase"]
[SourceQuality "1"]
[TimeControl "40/4500+30:900+30"]

1. e4 {[%emt 0:00:00]} c5 {[%emt 0:00:00]} 2. Nf3 {[%emt 0:00:00]} a6 {[%emt 0:00:00]} 3. d4 {[%emt 0:00:00]} cxd4 {[%emt 0:00:02]} 4. Nxd4 {[%emt 0:00:02]} e5 {[%emt 0:00:07]} 5. Nb3 {[%emt 0:00:18]} d6 {[%emt 0:00:06]} 6. Nc3 {[%emt 0:00:25]} Nf6 {[%emt 0:00:31]} 7. Be3 {[%emt 0:00:16]} Be7 {[%emt 0:00:19]} 8. Be2 {[%emt 0:00:22]} Nbd7 {[%emt 0:00:31]} 9. Qd2 {[%emt 0:00:21]} Qc7 {[%emt 0:00:12]} 10. f3 {[%emt 0:00:20]} b6 {[%emt 0:00:23]} 11. O-O-O {[%emt 0:00:16]} Bb7 {[%emt 0:00:16]} 12. g4 {[%emt 0:00:57]} h6 {[%emt 0:00:15]} 13. h4 {[%emt 0:00:34]} b5 {[%emt 0:01:33]} 14. a3 {[%emt 0:00:51]} Rc8 15. g5 {[%emt 0:01:03]} hxg5 {[%emt 0:01:58]} 16. hxg5 {[%emt 0:00:13]} Nh5 {[%emt 0:01:06]} 17. f4 {[%emt 0:00:24]} exf4 {[%emt 0:01:13]} 18. Bxf4 {[%emt 0:00:16]} g6 {[%emt 0:02:23]} 19. Bxh5 {[%emt 0:02:23]} gxh5 {[%emt 0:02:32]} 20. Bxd6 {[%emt 0:00:42]} Qxd6 {[%emt 0:02:47]} 21. Qxd6 {[%emt 0:00:23]} Bxd6 {[%emt 0:00:26]} 22. Rxd6 {[%emt 0:00:08]} Ke7 {[%emt 0:00:17]} 23. Rhd1 {[%emt 0:00:26]} Rc7 {[%emt 0:01:58]} 24. Na5 {[%emt 0:01:56]} h4 {[%emt 0:04:31]} 25. Nxb7 h3 {[%emt 0:00:51]} 26. Na5 {[%emt 0:00:54]} h2 {[%emt 0:00:23]} 27. Rh6 {[%emt 0:00:10]} Rxh6 {[%emt 0:00:38]} 28. gxh6 {[%emt 0:00:16]} Nf6 {[%emt 0:01:50]} 29. Rh1 {[%emt 0:00:16]} Rc8 {[%emt 0:01:54]} 30. Nd5+ {[%emt 0:00:26]} Nxd5 {[%emt 0:00:35]} 31. exd5 {[%emt 0:00:18]} Kd6 {[%emt 0:01:03]} 32. Rxh2 {[%emt 0:00:58]} Kxd5 {[%emt 0:00:14]} 33. Nb7 {[%emt 0:00:37]} f5 {[%emt 0:01:24]} 34. h7 {[%emt 0:01:07]} Rh8 {[%emt 0:00:20]} 35. Nd8 {[%emt 0:00:20]} Ke4 {[%emt 0:01:44]} 36. Nf7 {[%emt 0:00:09]} Rxh7 {[%emt 0:00:10]} 37. Rxh7 {[%emt 0:00:23]} f4 {[%emt 0:00:22]} 38. Kd2 {[%emt 0:00:16]} f3 {[%emt 0:00:13]} 39. Ng5+ {[%emt 0:00:07]} Kf4 {[%emt 0:00:11]} 40. Nxf3 {[%emt 0:00:10]} Kxf3 {[%emt 0:00:09]} 41. b4 {[%emt 0:15:19]} Ke4 {[%emt 0:15:17]} 42. Rh5 {[%emt 0:00:23]} Kd4 {[%emt 0:00:20]} 43. Rh4+ {[%emt 0:00:34]} Kd5 {[%emt 0:00:06]} 44. Ke3 {[%emt 0:00:11]} a5 {[%emt 0:00:29]} 45. Rd4+ {[%emt 0:00:20]} Kc6 {[%emt 0:00:08]} 46. Ke4 {[%emt 0:00:16]} axb4 {[%emt 0:00:31]} 47. axb4 {[%emt 0:00:10]} Kc7 {[%emt 0:00:08]} 48. Ke5 {[%emt 0:00:39]} Kc6 {[%emt 0:00:13]} 49. Rd6+ {[%emt 0:00:12]} Kc7 {[%emt 0:00:09]} 50. Kd5 {[%emt 0:00:16]} Kb7 {[%emt 0:00:11]} 51. Rc6 {[%emt 0:00:14]} Kb8 {[%emt 0:00:10]} 52. Kd6 {[%emt 0:00:16]} Kb7 {[%emt 0:00:07]} 53. Kd7 {[%emt 0:00:23]} Kb8 {[%emt 0:00:25]} 54. Rc7 {[%emt 0:00:20]} Ka8 {[%emt 0:00:07]} 55. Kc6 {[%emt 0:00:08]} Kb8 {[%emt 0:00:05]} 56. Kb6 {[%emt 0:00:09]} Ka8 {[%emt 0:00:11]} 57. Rc8# 1-0

[Event "GER-ch Youth U10 2020"]
[Site "Willingen"]
[Date "2020.10.27"]
[Round "1.25"]
[White "Peters, Lasse"]
[Black "Blumenthal Tuset, Sebastian"]
[Result "0-1"]
[ECO "B01"]
[WhiteElo "1223"]
[BlackElo "1453"]
[Annotator "NA RC"]
[PlyCount "168"]
[EventDate "2020.10.27"]
[EventType "swiss"]
[EventRounds "7"]
[EventCountry "GER"]
[SourceTitle "playchess.com"]
[Source "ChessBase"]
[SourceQuality "1"]
[TimeControl "40/4500+30:900+30"]

1. e4 {[%emt 0:00:00]} d5 {[%emt 0:00:00]} 2. exd5 {[%emt 0:00:03]} Qxd5 {[%emt 0:00:08]} 3. Nc3 {[%emt 0:00:23]} Qd6 {[%emt 0:00:00]} 4. Nf3 {[%emt 0:00:45]} Bg4 {[%emt 0:00:07]} 5. Bc4 {[%emt 0:00:51]} e6 {[%emt 0:00:32]} 6. d3 {[%emt 0:00:35]} Nf6 {[%emt 0:00:43]} 7. Bg5 {[%emt 0:00:18]} Nbd7 {[%emt 0:00:56]} 8. h3 {[%emt 0:00:21]} Bh5 {[%emt 0:00:17]} 9. Qd2 {[%emt 0:00:46]} Bxf3 {[%emt 0:06:37]} 10. gxf3 {[%emt 0:00:11]} c6 {[%emt 0:01:14]} 11. O-O-O {[%emt 0:02:08]} O-O-O {[%emt 0:00:39]} 12. Ne4 {[%emt 0:00:33]} Nxe4 {[%emt 0:02:19]} 13. fxe4 {[%emt 0:00:47]} Be7 {[%emt 0:01:29]} 14. Bxe7 {[%emt 0:01:28]} Qxe7 {[%emt 0:00:26]} 15. f4 {[%emt 0:01:26]} e5 {[%emt 0:05:26]} 16. Rhg1 {[%emt 0:01:06]} g6 {[%emt 0:02:43]} 17. c3 {[%emt 0:01:17]} Nc5 {[%emt 0:05:31]} 18. Qf2 {[%emt 0:03:23]} b5 {[%emt 0:01:00]} 19. d4 {[%emt 0:01:38]} Nxe4 {[%emt 0:00:52]} 20. Qe3 {[%emt 0:01:38]} exf4 {[%emt 0:02:15]} 21. Qxf4 {[%emt 0:04:22]} bxc4 {[%emt 0:00:53]} 22. Rge1 {[%emt 0:02:15]} f5 {[%emt 0:00:25]} 23. Re3 {[%emt 0:01:49]} Qd6 {[%emt 0:00:49]} 24. Qf3 {[%emt 0:01:20]} Rhe8 {[%emt 0:03:49]} 25. Kc2 {[%emt 0:01:17]} Ng5 {[%emt 0:03:30]} 26. Qf2 {[%emt 0:01:59]} Rxe3 {[%emt 0:01:28]} 27. Qxe3 {[%emt 0:00:43]} Qf6 {[%emt 0:01:28]} 28. h4 {[%emt 0:01:42]} Nf7 {[%emt 0:01:32]} 29. Qe2 {[%emt 0:00:27]} Nd6 {[%emt 0:01:39]} 30. d5 {[%emt 0:02:23]} Re8 {[%emt 0:01:37]} 31. Qf2 {[%emt 0:01:26]} cxd5 {[%emt 0:01:37]} 32. Qc5+ {[%emt 0:01:15]} Kd8 {[%emt 0:03:31]} 33. Qa5+ {[%emt 0:01:32]} Ke7 {[%emt 0:01:03]} 34. Qxa7+ {[%emt 0:01:09]} Kf8 {[%emt 0:00:32]} 35. Qxh7 {[%emt 0:01:30]} Qg7 {[%emt 0:00:45]} 36. Qxg7+ {[%emt 0:01:46]} Kxg7 {[%emt 0:00:02]} 37. Rxd5 {[%emt 0:00:48]} Re6 {[%emt 0:00:44]} 38. a4 {[%emt 0:01:07]} f4 {[%emt 0:01:42]} 39. a5 {[%emt 0:00:34]} f3 {[%emt 0:00:26]} 40. Rd2 {[%emt 0:00:19]} Re2 {[%emt 0:00:27]} 41. Rxe2 {[%emt 0:15:07]} fxe2 {[%emt 0:15:09]} 42. Kd2 {[%emt 0:00:22]} Nc8 {[%emt 0:00:12]} 43. Kxe2 {[%emt 0:00:12]} Kf6 {[%emt 0:00:11]} 44. Kf3 {[%emt 0:00:58]} Kf5 {[%emt 0:00:32]} 45. a6 {[%emt 0:00:27]} Na7 {[%emt 0:02:33]} 46. Kg3 {[%emt 0:02:04]} Nc6 {[%emt 0:01:45]} 47. Kf3 {[%emt 0:02:19]} Ne5+ {[%emt 0:00:49]} 48. Kg3 {[%emt 0:00:32]} Nc6 {[%emt 0:00:46]} 49. Kf3 {[%emt 0:02:00]} Na7 {[%emt 0:03:00]} 50. Ke3 {[%emt 0:01:10]} Kg4 {[%emt 0:00:42]} 51. Kd4 {[%emt 0:00:24]} Kxh4 {[%emt 0:00:16]} 52. Kc5 {[%emt 0:00:31]} g5 {[%emt 0:00:11]} 53. Kb6 {[%emt 0:00:53]} g4 {[%emt 0:00:32]} 54. Kxa7 {[%emt 0:00:16]} g3 {[%emt 0:00:07]} 55. Kb7 {[%emt 0:00:28]} g2 {[%emt 0:00:10]} 56. a7 {[%emt 0:00:12]} g1=Q 57. a8=Q Qg2+ {[%emt 0:00:00]} 58. Kb8 {[%emt 0:01:22]} Qxb2+ {[%emt 0:00:00]} 59. Ka7 {[%emt 0:01:19]} Qxc3 {[%emt 0:00:20]} 60. Qd8+ {[%emt 0:00:46]} Kg3 {[%emt 0:00:29]} 61. Qd6+ {[%emt 0:01:37]} Kf2 {[%emt 0:00:38]} 62. Qc5+ {[%emt 0:00:33]} Ke2 {[%emt 0:00:31]} 63. Qh5+ {[%emt 0:00:53]} Kd2 {[%emt 0:00:20]} 64. Qh2+ {[%emt 0:00:17]} Kc1 {[%emt 0:00:25]} 65. Qg1+ {[%emt 0:00:31]} Kb2 {[%emt 0:00:17]} 66. Qf2+ {[%emt 0:00:47]} Kb3 {[%emt 0:00:23]} 67. Qb6+ {[%emt 0:00:25]} Qb4 {[%emt 0:00:27]} 68. Qe3+ {[%emt 0:00:26]} Ka4 {[%emt 0:00:31]} 69. Qe8+ {[%emt 0:00:28]} Qb5 {[%emt 0:00:16]} 70. Qe1 {[%emt 0:00:52]} Qa5+ {[%emt 0:00:19]} 71. Qxa5+ {[%emt 0:01:16]} Kxa5 {[%emt 0:00:16]} 72. Kb7 {[%emt 0:00:11]} c3 {[%emt 0:00:07]} 73. Kc6 {[%emt 0:00:12]} c2 {[%emt 0:00:12]} 74. Kd5 {[%emt 0:00:12]} c1=Q {[%emt 0:00:14]} 75. Ke4 {[%emt 0:00:04]} Qd2 {[%emt 0:00:20]} 76. Ke5 {[%emt 0:00:24]} Kb5 {[%emt 0:00:08]} 77. Ke4 {[%emt 0:00:07]} Kc5 {[%emt 0:00:12]} 78. Ke5 {[%emt 0:00:27]} Qe3+ {[%emt 0:00:11]} 79. Kf5 {[%emt 0:00:07]} Kd6 {[%emt 0:00:13]} 80. Kf6 {[%emt 0:00:16]} Qf4+ {[%emt 0:00:12]} 81. Kg7 {[%emt 0:00:14]} Ke6 {[%emt 0:00:20]} 82. Kh7 {[%emt 0:00:18]} Qg5 {[%emt 0:00:12]} 83. Kh8 {[%emt 0:00:18]} Kf7 {[%emt 0:00:13]} 84. Kh7 {[%emt 0:00:37]} Qg7# {[%emt 0:00:14]} 0-1

[Event "GER-ch Youth U10 2020"]
[Site "Willingen"]
[Date "2020.10.27"]
[Round "1.27"]
[White "Ehrath, Hendrik"]
[Black "Bangert, Jonas"]
[Result "0-1"]
[ECO "B10"]
[WhiteElo "1193"]
[BlackElo "1549"]
[Annotator "NA RC"]
[PlyCount "72"]
[EventDate "2020.10.27"]
[EventType "swiss"]
[EventRounds "7"]
[EventCountry "GER"]
[SourceTitle "playchess.com"]
[Source "ChessBase"]
[SourceQuality "1"]
[TimeControl "40/4500+30:900+30"]

1. e4 {[%emt 0:00:00]} c6 {[%emt 0:00:00]} 2. Nc3 {[%emt 0:00:00]} d5 {[%emt 0:00:00]} 3. Nf3 {[%emt 0:00:00]} dxe4 {[%emt 0:00:00]} 4. Nxe4 {[%emt 0:00:10]} Nf6 {[%emt 0:00:00]} 5. Bc4 Nxe4 6. Qe2 {[%emt 0:02:44]} Nf6 {[%emt 0:00:11]} 7. Ng5 {[%emt 0:00:10]} e6 {[%emt 0:00:25]} 8. d3 h6 9. Nf3 {[%emt 0:01:30]} Be7 {[%emt 0:01:01]} 10. Bf4 {[%emt 0:00:10]} Nbd7 {[%emt 0:00:51]} 11. O-O {[%emt 0:00:31]} b5 {[%emt 0:00:41]} 12. Bb3 {[%emt 0:00:09]} Nb6 {[%emt 0:00:28]} 13. Ne5 {[%emt 0:02:11]} Bd7 {[%emt 0:00:52]} 14. Qf3 {[%emt 0:00:46]} Qc8 {[%emt 0:00:38]} 15. Qg3 Nh5 16. Qf3 Nxf4 17. Qxf4 {[%emt 0:04:44]} Bf6 {[%emt 0:01:32]} 18. Ng4 {[%emt 0:00:44]} Qd8 {[%emt 0:00:43]} 19. Nxf6+ {[%emt 0:00:54]} Qxf6 {[%emt 0:00:11]} 20. Qg3 {[%emt 0:00:53]} O-O {[%emt 0:02:12]} 21. Qc7 {[%emt 0:01:31]} Qxb2 {[%emt 0:01:18]} 22. Rab1 Qf6 23. Qg3 {[%emt 0:01:40]} Rac8 {[%emt 0:02:33]} 24. c4 {[%emt 0:01:04]} c5 {[%emt 0:02:05]} 25. cxb5 Bxb5 26. Rfc1 Bxd3 27. Qxd3 {[%emt 0:04:00]} Rfd8 {[%emt 0:01:41]} 28. Qg3 {[%emt 0:00:25]} Rd7 {[%emt 0:05:23]} 29. Rd1 {[%emt 0:00:37]} Rxd1+ {[%emt 0:00:25]} 30. Rxd1 {[%emt 0:00:12]} c4 {[%emt 0:00:36]} 31. Bc2 Qb2 32. Be4 {[%emt 0:01:54]} c3 {[%emt 0:01:24]} 33. Rb1 {[%emt 0:00:23]} c2 {[%emt 0:02:50]} 34. Qb3 {[%emt 0:01:12]} cxb1=Q+ {[%emt 0:00:56]} 35. Bxb1 {[%emt 0:00:16]} Rc1+ {[%emt 0:00:29]} 36. Qd1 {[%emt 0:00:08]} Rxd1# {[%emt 0:00:07]} 0-1

[Event "GER-ch Youth U10 2020"]
[Site "Willingen"]
[Date "2020.10.27"]
[Round "1.29"]
[White "Kutz, Paul Matti"]
[Black "Thuemler, Floris"]
[Result "0-1"]
[ECO "B00"]
[WhiteElo "1242"]
[BlackElo "1295"]
[Annotator "NA RC"]
[PlyCount "62"]
[EventDate "2020.10.27"]
[EventType "swiss"]
[EventRounds "7"]
[EventCountry "GER"]
[SourceTitle "playchess.com"]
[Source "ChessBase"]
[SourceQuality "1"]
[TimeControl "40/4500+30:900+30"]

1. e4 {[%emt 0:00:00]} d6 {[%emt 0:00:00]} 2. Nf3 {[%emt 0:00:54]} Nf6 {[%emt 0:01:49]} 3. d3 {[%emt 0:01:59]} g6 {[%emt 0:01:38]} 4. c3 {[%emt 0:00:09]} Bg7 {[%emt 0:01:28]} 5. Be2 {[%emt 0:00:28]} O-O {[%emt 0:01:51]} 6. O-O {[%emt 0:00:13]} Nbd7 {[%emt 0:03:54]} 7. Bf4 {[%emt 0:01:26]} Nc5 {[%emt 0:04:35]} 8. e5 {[%emt 0:03:22]} Nd5 {[%emt 0:01:56]} 9. Bg3 {[%emt 0:00:54]} Bf5 {[%emt 0:04:56]} 10. d4 {[%emt 0:01:51]} Ne4 {[%emt 0:02:55]} 11. exd6 {[%emt 0:01:56]} cxd6 {[%emt 0:03:11]} 12. Bd3 {[%emt 0:00:31]} Qb6 {[%emt 0:02:37]} 13. Bxe4 {[%emt 0:00:49]} Bxe4 {[%emt 0:01:21]} 14. Qe1 {[%emt 0:00:17]} Bxf3 {[%emt 0:00:54]} 15. gxf3 {[%emt 0:01:00]} Qxb2 {[%emt 0:01:28]} 16. Qe4 {[%emt 0:06:47]} Nf6 {[%emt 0:01:30]} 17. Qxe7 {[%emt 0:00:57]} Qxa1 {[%emt 0:01:42]} 18. Qxb7 {[%emt 0:01:17]} Rab8 {[%emt 0:02:24]} 19. Qxa7 {[%emt 0:04:47]} Rxb1 {[%emt 0:01:46]} 20. Rxb1 {[%emt 0:00:08]} Qxb1+ {[%emt 0:00:27]} 21. Kg2 {[%emt 0:00:22]} Qb8 {[%emt 0:01:46]} 22. Qa3 {[%emt 0:03:41]} Qa8 {[%emt 0:01:13]} 23. Qxd6 {[%emt 0:03:34]} Qxa2 {[%emt 0:00:48]} 24. d5 {[%emt 0:00:55]} Nxd5 {[%emt 0:01:36]} 25. Be5 {[%emt 0:03:27]} Bxe5 {[%emt 0:01:11]} 26. Qxe5 {[%emt 0:00:03]} Qc4 {[%emt 0:00:22]} 27. f4 {[%emt 0:00:28]} Nxf4+ {[%emt 0:00:49]} 28. Kg1 {[%emt 0:01:37]} Ne2+ {[%emt 0:00:11]} 29. Kg2 {[%emt 0:00:25]} Nxc3 {[%emt 0:01:53]} 30. f4 {[%emt 0:00:15]} Qe4+ {[%emt 0:00:31]} 31. Qxe4 {[%emt 0:00:39]} Nxe4 {[%emt 0:00:08]} 0-1

[Event "GER-ch Youth U10 2020"]
[Site "Willingen"]
[Date "2020.10.28"]
[Round "2.1"]
[White "Besou, Hussain"]
[Black "Braun, Julian"]
[Result "1-0"]
[ECO "C78"]
[WhiteElo "1825"]
[BlackElo "1441"]
[Annotator "NA RC"]
[PlyCount "57"]
[EventDate "2020.10.27"]
[EventType "swiss"]
[EventRounds "7"]
[EventCountry "GER"]
[SourceTitle "playchess.com"]
[Source "ChessBase"]
[SourceQuality "1"]
[TimeControl "40/4500+30:900+30"]

{[%evp 16,45,33,20,22,12,19,9,17,8,42,-32,-23,-14,32767,32767,-8,-18,32767,-48,79,40,57,52,127,125,127,32767,66,10,17,3]} 1. e4 {[%emt 0:00:00]} e5 {[%emt 0:00:00]} 2. Nf3 {[%emt 0:00:05]} Nc6 {[%emt 0:00:00]} 3. Bb5 {[%emt 0:00:07]} a6 {[%emt 0:00:00]} 4. Ba4 {[%emt 0:00:05]} Nf6 {[%emt 0:00:01]} 5. O-O {[%emt 0:00:15]} b5 {[%emt 0:00:13]} 6. Bb3 {[%emt 0:00:06]} Be7 {[%emt 0:00:08]} 7. d3 {[%emt 0:00:05]} O-O {[%emt 0:00:12]} 8. c3 {[%emt 0:00:04]} d6 {[%emt 0:00:27]} 9. h3 {[%emt 0:00:06] C84: Closed Ruy Lopez: Unusual White 6th moves.} Nb8 {[%emt 0:00:41]} 10. d4 {[%emt 0:00:24]} Nbd7 {[%emt 0:00:21]} 11. Nbd2 {[%emt 0:00:33]} Bb7 {[%emt 0:00:34]} 12. Re1 {[%emt 0:00:06] [#]} h6 $146 {[%emt 0:02:26]} ({Predecessor:} 12... c5 13. d5 c4 14. Bc2 Nc5 15. Nf1 Nfd7 16. Ng3 g6 17. Bh6 Re8 18. Qd2 Nb6 {0-1 (76) Espinoza,F (2159)-Rocha,M (2134) Managua 2016}) 13. d5 {[%emt 0:03:17]} ({Better is} 13. Bc2 $14) 13... c6 {[%emt 0:05:33]} 14. dxc6 {[%emt 0:03:15]} Bxc6 {[%emt 0:03:27]} 15. Bc2 {[%emt 0:00:05]} Nc5 {[%emt 0:01:08]} 16. b4 {[%emt 0:01:06]} Ne6 {[%emt 0:01:32]} 17. Nf1 {[%emt 0:00:32]} Nf4 {[%emt 0:05:20]} (17... Qc7 $15 {keeps the upper hand.}) 18. Bxf4 $1 {[%emt 0:02:27]} exf4 {[%emt 0:00:02]} 19. Nd4 {[%emt 0:00:08]} Qd7 {[%emt 0:05:23]} (19... Qc7 $14) 20. Qd2 {[%emt 0:00:44]} d5 {[%emt 0:01:49]} 21. Qxf4 {[%emt 0:10:39]} dxe4 {[%emt 0:13:32]} 22. Rad1 {[%emt 0:00:40]} (22. Nf5 $16) 22... Bd6 {[%emt 0:05:42]} 23. Qf5 $11 {[%emt 0:01:31]} Qxf5 {[%emt 0:02:46]} 24. Nxf5 {[%emt 0:00:06]} Be5 {[%emt 0:00:37]} 25. Ne7+ {[%emt 0:00:05]} Kh8 {[%emt 0:00:24]} 26. Nxc6 {[%emt 0:00:01]} Bxc3 {[%emt 0:00:29]} 27. Re3 {[%emt 0:00:05]} Bb2 {[%emt 0:01:17]} 28. Bxe4 {[%emt 0:00:10]} Rac8 {[%emt 0:02:32]} 29. Bf3 {[%emt 0:00:18]} 1-0

[Event "GER-ch Youth U10 2020"]
[Site "Willingen"]
[Date "2020.10.28"]
[Round "2.2"]
[White "Goldmann, David"]
[Black "Kullmann, Max"]
[Result "1-0"]
[ECO "A21"]
[WhiteElo "1644"]
[BlackElo "1375"]
[Annotator "NA RC"]
[PlyCount "131"]
[EventDate "2020.10.27"]
[EventType "swiss"]
[EventRounds "7"]
[EventCountry "GER"]
[SourceTitle "playchess.com"]
[Source "ChessBase"]
[SourceQuality "1"]
[TimeControl "40/4500+30:900+30"]

1. c4 {[%emt 0:00:00]} e5 {[%emt 0:00:00]} 2. Nc3 {[%emt 0:00:00]} g6 {[%emt 0:01:40]} 3. Nf3 {[%emt 0:00:26]} Bg7 {[%emt 0:00:55]} 4. d4 {[%emt 0:01:40]} Nc6 {[%emt 0:01:47]} 5. d5 {[%emt 0:00:27]} Nce7 {[%emt 0:01:43]} 6. d6 {[%emt 0:00:56]} cxd6 {[%emt 0:03:35]} 7. Nb5 {[%emt 0:00:59]} Qa5+ {[%emt 0:10:08]} 8. Bd2 {[%emt 0:00:44]} Qb6 {[%emt 0:00:20]} 9. Bc3 {[%emt 0:03:22]} d5 {[%emt 0:05:51]} 10. e3 {[%emt 0:09:52]} a6 {[%emt 0:02:13]} 11. Na3 {[%emt 0:00:57]} d4 {[%emt 0:05:23]} 12. exd4 {[%emt 0:01:13]} exd4 {[%emt 0:01:21]} 13. Bxd4 {[%emt 0:00:01]} Bxd4 {[%emt 0:00:28]} 14. Qxd4 {[%emt 0:00:02]} Qxd4 {[%emt 0:00:48]} 15. Nxd4 {[%emt 0:00:01]} Nc6 {[%emt 0:00:50]} 16. O-O-O {[%emt 0:00:20]} Nge7 {[%emt 0:03:09]} 17. Be2 {[%emt 0:01:15]} O-O {[%emt 0:01:59]} 18. Bf3 {[%emt 0:00:12]} Nxd4 {[%emt 0:03:19]} 19. Rxd4 {[%emt 0:00:06]} Nc6 {[%emt 0:00:07]} 20. Rd2 {[%emt 0:02:32]} b5 {[%emt 0:03:49]} 21. b3 {[%emt 0:00:40]} bxc4 {[%emt 0:02:30]} 22. Nxc4 {[%emt 0:00:17]} Rb8 {[%emt 0:01:33]} 23. Kb2 {[%emt 0:01:13]} Rb5 {[%emt 0:01:02]} 24. Rc1 {[%emt 0:02:45]} Ne5 {[%emt 0:02:40]} 25. Be4 {[%emt 0:00:51]} Nxc4+ {[%emt 0:00:26]} 26. Rxc4 {[%emt 0:00:14]} Rd8 {[%emt 0:01:03]} 27. Rd6 {[%emt 0:01:52]} Bb7 {[%emt 0:01:04]} 28. Bxb7 {[%emt 0:00:11]} Rxb7 {[%emt 0:00:08]} 29. Rxa6 {[%emt 0:00:03]} d5 {[%emt 0:00:52]} 30. Rd4 {[%emt 0:00:07]} Re7 {[%emt 0:00:53]} 31. Kc2 {[%emt 0:01:15]} Re2+ {[%emt 0:01:39]} 32. Rd2 {[%emt 0:00:16]} Re7 {[%emt 0:01:48]} 33. Rc6 {[%emt 0:00:41]} Ra7 {[%emt 0:01:42]} 34. a4 {[%emt 0:00:12]} Rb7 {[%emt 0:01:04]} 35. a5 {[%emt 0:00:22]} Rb5 {[%emt 0:00:52]} 36. a6 {[%emt 0:00:14]} Ra8 {[%emt 0:01:06]} 37. Kc3 {[%emt 0:00:09]} Ra5 {[%emt 0:02:09]} 38. b4 {[%emt 0:00:42]} R5xa6 {[%emt 0:01:36]} 39. Rxa6 {[%emt 0:00:13]} Rxa6 {[%emt 0:00:06]} 40. Rxd5 {[%emt 0:00:06]} Kf8 {[%emt 0:00:39]} 41. Rd2 {[%emt 0:15:40]} Ke7 {[%emt 0:16:01]} 42. Kc4 {[%emt 0:00:48]} Ra8 {[%emt 0:01:07]} 43. b5 {[%emt 0:00:21]} Rc8+ {[%emt 0:00:33]} 44. Kb4 {[%emt 0:00:08]} Rb8 {[%emt 0:00:05]} 45. Ka5 {[%emt 0:00:14]} Ra8+ {[%emt 0:03:47]} 46. Kb6 {[%emt 0:00:22]} Ra3 {[%emt 0:00:32]} 47. Kb7 {[%emt 0:00:10]} Rb3 {[%emt 0:00:23]} 48. b6 {[%emt 0:00:04]} Rc3 {[%emt 0:00:35]} 49. Kb8 {[%emt 0:00:09]} Rb3 {[%emt 0:00:44]} 50. b7 {[%emt 0:00:05]} Rc3 {[%emt 0:00:14]} 51. Ra2 {[%emt 0:00:08]} Rd3 {[%emt 0:02:45]} 52. Ka8 {[%emt 0:00:26]} Rd8+ {[%emt 0:00:45]} 53. b8=Q {[%emt 0:00:27]} Rxb8+ {[%emt 0:00:06]} 54. Kxb8 {[%emt 0:00:06]} Kf6 {[%emt 0:00:10]} 55. Kc7 {[%emt 0:00:05]} Ke7 {[%emt 0:00:26]} 56. Re2+ {[%emt 0:00:04]} Kf6 {[%emt 0:00:32]} 57. Kd7 {[%emt 0:00:00]} Kg7 {[%emt 0:00:31]} 58. Ke7 {[%emt 0:00:01]} f5 {[%emt 0:00:17]} 59. f3 {[%emt 0:00:05]} Kh6 {[%emt 0:00:35]} 60. g4 {[%emt 0:00:11]} fxg4 {[%emt 0:00:12]} 61. fxg4 {[%emt 0:00:19]} Kg5 {[%emt 0:00:13]} 62. h3 {[%emt 0:00:05]} Kh4 {[%emt 0:00:50]} 63. g5 {[%emt 0:00:30]} Kh5 {[%emt 0:00:30]} 64. Re5 {[%emt 0:00:00]} h6 {[%emt 0:06:37]} 65. Kf6 {[%emt 0:00:00]} hxg5 {[%emt 0:00:36]} 66. Rxg5+ {[%emt 0:00:00]} 1-0